bitfinex/quotes_ETHUSD_20251218
["timestamp","ask_amount","ask_price","bid_price","bid_amount"]
[1766093445313,0.582,2825.5,2824.5,2.4674]
[1766093445519,0.81321,2825.4,2824.5,2.4674]
[1766093445687,7.5501,2825.1,2824.4,0.582]
[1766093445885,0.001,2826.1,2824.4,0.582]
[1766093446087,2.5844,2827.1,2825.1,0.405504]
[1766093446337,7.5501,2826.5,2825.4,2.4674]
[1766093446914,7.5501,2826.5,2825.5,0.583]
[1766093447085,7.5501,2826.3,2825.5,0.583]
[1766093447410,10.1345,2826.3,2825.5,0.583]
[1766093447597,0.583,2826.7,2825.4,0.583]
[1766093447598,10.1345,2826.2,2825.4,0.583]
[1766093447797,1.01345,2826.1,2825.4,0.583]
[1766093448517,8.56355,2826.1,2825.4,0.583]
[1766093448723,7.5501,2826.0,2825.4,0.583]
[1766093449535,1.01345,2826.1,2825.4,0.583]
[1766093449717,0.583,2826.7,2825.4,0.583]
[1766093449718,7.5501,2826.2,2825.4,0.583]
[1766093450228,10.1345,2826.5,2825.4,0.583]
[1766093450433,3.53787591,2826.6,2825.2,2.4674]
[1766093450637,7.07581114,2826.6,2824.8,2.4674]
[1766093450841,10.1345,2826.5,2825.0,0.46438023]
[1766093451130,1.56347286,2826.4,2825.0,10.63548023]
[1766093451303,7.5501,2826.2,2825.1,0.46438023]
[1766093451505,7.5501,2826.2,2825.2,0.584]
[1766093451721,7.5501,2826.2,2825.2,3.0514]
[1766093452042,7.5501,2826.2,2825.3,2.4674]
[1766093453311,7.5501,2826.2,2824.8,0.46438023]
[1766093453506,7.5501,2826.0,2825.0,0.46438023]
[1766093453712,7.5501,2826.0,2825.1,2.4674]
[1766093454512,7.5501,2826.0,2824.1,1.2472033]
[1766093454513,2.5844,2826.0,2824.1,1.2472033]
[1766093454846,0.75501,2826.1,2825.3,0.002]
[1766093454847,7.5501,2825.7,2825.3,0.002]
[1766093455163,1.01345,2825.6,2824.9,0.583]
[1766093455312,0.583,2825.9,2824.3,0.002]
[1766093455313,7.5501,2825.1,2824.3,0.002]
[1766093455648,7.5501,2825.1,2824.3,0.585]
[1766093455649,10.1345,2825.1,2824.3,0.585]
[1766093455845,0.583,2825.5,2824.3,0.585]
[1766093455846,7.5501,2824.9,2824.3,0.585]
[1766093456144,10.1345,2824.9,2824.3,0.002]
[1766093456352,2.5844,2824.8,2824.3,0.002]
[1766093456611,10.39294,2824.7,2824.1,0.002]
[1766093456738,7.80854,2824.7,2824.1,0.002]
[1766093457559,2.5844,2824.6,2824.1,0.002]
[1766093458857,0.25844,2824.7,2824.1,0.002]
[1766093459246,10.39294,2824.7,2824.1,0.002]
[1766093459627,10.1345,2824.6,2824.1,0.002]
[1766093460438,7.5501,2824.6,2824.1,0.002]
[1766093461333,0.780854,2824.6,2823.4,2.19108633]
[1766093461539,10.2202,2824.3,2823.5,1.04638023]
[1766093461759,7.7307,2824.2,2823.4,1.7267061]
[1766093461945,0.582,2824.7,2823.3,0.582]
[1766093461946,10.2202,2824.1,2823.3,0.582]
[1766093462557,7.7307,2824.1,2823.3,2.86828023]
[1766093463471,10.2202,2824.1,2823.1,3.54419266]
[1766093463639,10.2202,2824.1,2823.2,1.04638023]
[1766093463966,10.2202,2824.1,2823.2,0.582]
[1766093464351,10.2202,2824.1,2823.2,1.28164732]
[1766093465742,10.2202,2824.1,2823.3,0.46438023]
[1766093466282,3.741,2825.2,2823.3,0.46438023]
[1766093466283,0.46438023,2825.6,2823.5,7.0808]
[1766093466585,2.4895,2826.0,2824.9,2.4039]
[1766093466870,10.2202,2825.9,2825.0,0.583]
[1766093467173,1.02202,2825.8,2825.0,0.583]
[1766093469842,8.75272,2825.8,2825.0,0.583]
[1766093470044,7.7307,2825.7,2825.0,0.583]
[1766093470260,10.2202,2825.7,2825.0,0.583]
[1766093470775,10.2202,2825.7,2824.9,2.4039]
[1766093470974,1.124222,2825.6,2824.9,2.4039]
[1766093471160,7.7307,2825.5,2824.8,0.583]
[1766093471876,10.2202,2826.1,2824.5,0.405504]
[1766093472051,8.75282,2826.0,2825.0,2.4039]
[1766093472251,0.582,2825.9,2825.0,9.4847]
[1766093472456,0.001,2825.8,2825.0,9.4847]
[1766093475191,10.2643,2825.8,2825.0,2.4039]
[1766093475883,0.583,2825.8,2824.6,2.9916]
[1766093476896,7.6764,2825.7,2824.6,0.582]
[1766093477051,7.6764,2825.3,2824.6,0.582]
[1766093477253,7.6764,2825.2,2824.4,9.5661]
[1766093477453,10.2633,2825.2,2824.4,2.4096]
[1766093478184,10.2633,2825.1,2824.3,0.581]
[1766093478486,1.02633,2825.0,2824.3,0.581]
[1766093479485,1.02633,2825.0,2824.2,0.581]
[1766093479486,7.6764,2824.9,2824.2,0.581]
[1766093479686,10.2633,2824.9,2824.2,0.581]
[1766093479891,7.68584895,2826.2,2824.7,0.46438023]
[1766093479892,0.001,2826.2,2824.7,0.46438023]
[1766093480191,0.001,2826.2,2824.4,4.47173728]
[1766093480192,10.2633,2826.0,2825.1,7.1565]
[1766093480358,10.2633,2826.0,2825.2,3.70725]
[1766093480686,10.2633,2826.0,2825.2,2.9916]
[1766093482777,7.6764,2826.0,2825.2,0.582]
[1766093482966,7.6764,2826.0,2825.2,2.9916]
[1766093483175,2.5869,2826.1,2825.2,7.7385]
[1766093483379,2.5869,2826.1,2825.3,2.4096]
[1766093484570,0.582,2826.2,2825.4,2.4096]
[1766093484772,0.001,2826.2,2825.6,2.4096]
[1766093485459,0.001,2826.2,2825.3,1.01481]
[1766093485782,0.001,2826.2,2825.4,9.5661]
[1766093486661,0.001,2826.2,2825.1,0.46438023]
[1766093486863,0.001,2826.2,2825.3,7.1565]
[1766093487062,0.001,2826.2,2825.4,2.4096]
[1766093487763,10.2633,2826.1,2825.3,7.1565]
[1766093487962,11.28973,2826.1,2825.3,7.1565]
[1766093488488,0.001,2826.2,2825.4,2.4096]
[1766093489197,7.6774,2826.2,2825.4,2.4096]
[1766093489504,10.2643,2826.2,2825.4,2.4096]
[1766093490191,7.6764,2826.1,2825.4,2.4096]
[1766093490411,10.2633,2826.1,2825.4,2.4096]
[1766093490588,7.6764,2826.0,2825.3,7.1565]
[1766093490796,7.6764,2826.0,2824.8,3.54001577]
[1766093490797,2.5869,2825.9,2824.8,2.4096]
[1766093490998,7.6764,2825.7,2824.9,2.9896]
[1766093492986,10.2633,2825.7,2824.9,2.9896]
[1766093494061,7.6764,2825.6,2824.9,2.9896]
[1766093494493,10.2633,2825.5,2824.9,0.58]
[1766093494826,7.6764,2825.1,2824.3,2.4096]
[1766093495001,10.2633,2825.1,2824.4,0.58]
[1766093495325,7.6764,2825.0,2824.4,0.58]
[1766093495732,2.5869,2824.9,2824.4,0.58]
[1766093496026,0.58,2825.1,2824.4,2.9896]
[1766093496523,9.28273,2825.4,2824.5,0.0616]
[1766093496705,10.2633,2825.3,2824.5,0.0616]
[1766093497114,1.60633,2825.4,2824.5,0.0616]
[1766093497316,10.2633,2825.3,2824.5,0.0616]
[1766093497496,0.58,2825.4,2824.4,7.7365]
[1766093497695,2.5869,2825.2,2824.4,7.7365]
[1766093497911,10.2633,2825.2,2824.4,7.7365]
[1766093499599,0.58,2825.4,2824.4,7.7365]
[1766093499800,7.6764,2825.2,2824.4,0.58]
[1766093500225,0.41192022,2825.3,2824.4,0.58]
[1766093500226,10.2633,2825.0,2824.4,0.58]
[1766093500438,3.95139058,2825.3,2824.0,0.002]
[1766093500639,0.41192022,2825.3,2824.1,0.579]
[1766093500798,10.2633,2824.9,2824.1,0.579]
[1766093501398,0.579,2825.0,2824.2,9.5661]
[1766093502447,10.8423,2825.0,2824.2,9.5661]
[1766093503734,10.2633,2825.0,2824.2,9.5661]
[1766093504114,9.7872,2825.0,2824.2,9.5661]
[1766093504742,7.3794,2825.0,2824.2,9.5661]
[1766093505045,10.62835391,2825.0,2824.2,9.5661]
[1766093505244,9.7872,2824.9,2824.1,0.579]
[1766093506320,2.4078,2824.8,2824.1,0.579]
[1766093507749,9.7872,2825.0,2824.1,0.579]
[1766093507952,7.3794,2825.0,2824.1,0.579]
[1766093508133,9.7872,2824.8,2824.1,0.579]
[1766093508522,7.3794,2824.8,2824.1,0.579]
[1766093508722,9.7872,2824.8,2824.1,0.579]
[1766093509128,7.3794,2824.8,2824.1,0.579]
[1766093509352,9.7872,2824.6,2824.1,0.579]
[1766093509549,0.79584,2824.9,2824.1,0.579]
[1766093509752,9.7872,2824.6,2824.1,0.579]
[1766093510074,0.579,2825.1,2824.0,0.002]
[1766093510277,4.11869846,2825.1,2824.0,0.002]
[1766093510481,0.579,2825.1,2824.0,0.002]
[1766093510852,9.7872,2825.0,2824.0,0.002]
[1766093511047,1.03662,2824.9,2824.0,0.002]
[1766093511250,4.11870503,2825.1,2824.0,0.002]
[1766093511449,9.7872,2825.0,2824.0,0.002]
[1766093511680,4.11870503,2825.1,2824.0,0.002]
[1766093511884,7.3794,2825.0,2824.0,0.002]
[1766093512069,7.3794,2824.6,2824.0,0.002]
[1766093512263,9.7872,2824.5,2824.0,0.002]
[1766093512570,0.577,2824.7,2824.0,0.002]
[1766093512775,7.3794,2824.4,2824.0,0.002]
[1766093512949,9.7872,2824.4,2824.0,0.002]
[1766093513346,9.7872,2824.4,2823.4,3.54175931]
[1766093513347,7.3794,2824.1,2823.4,4.00614279]
[1766093513656,0.577,2824.3,2823.7,10.0719]
[1766093514074,9.7872,2824.5,2823.7,10.0719]
[1766093514274,2.4078,2824.4,2823.7,10.0719]
[1766093514470,0.577,2824.6,2823.6,0.46438023]
[1766093514647,3.53982594,2825.0,2823.3,2.5128]
[1766093514648,2.4078,2825.0,2823.3,2.5128]
[1766093514851,1.19188,2824.9,2823.4,4.44000194]
[1766093515078,7.3794,2824.8,2823.7,0.46438023]
[1766093515288,2.4078,2824.5,2823.7,0.46438023]
[1766093515500,9.7872,2824.4,2823.7,0.46438023]
[1766093515990,0.577,2824.5,2823.7,0.46438023]
[1766093516292,2.4078,2824.4,2823.7,0.46438023]
[1766093516459,2.4078,2824.3,2823.7,0.46438023]
[1766093516662,9.7872,2824.3,2823.7,0.46438023]
[1766093517653,0.577,2824.5,2823.5,10.53628023]
[1766093517856,9.7872,2824.4,2823.5,12.03392332]
[1766093518055,0.577,2824.5,2823.5,12.03392332]
[1766093518253,0.001,2825.8,2823.9,7.5591]
[1766093518510,9.7872,2826.6,2825.2,0.46438023]
[1766093518796,9.7882,2827.0,2825.7,7.5591]
[1766093519098,9.7872,2826.9,2826.1,2.5128]
[1766093519389,0.001,2827.0,2825.9,7.5591]
[1766093520666,2.4078,2826.8,2825.9,7.5591]
[1766093520865,0.001,2827.0,2825.9,7.5591]
[1766093521055,9.7872,2826.9,2825.9,7.5591]
[1766093521362,1.55682,2826.8,2825.8,0.7964604]
[1766093521554,9.3974,2826.7,2825.6,0.578]
[1766093521880,9.3984,2826.4,2825.6,0.578]
[1766093522088,0.001,2826.4,2825.6,0.578]
[1766093522285,0.001,2827.0,2825.8,6.7662]
[1766093522466,0.001,2827.0,2826.3,9.2918]
[1766093522666,0.001,2827.0,2826.4,0.578]
[1766093523389,1.78155013,2829.2,2826.6,2.5256]
[1766093523588,6.9224,2828.9,2827.3,2.5256]
[1766093523961,6.9224,2828.7,2827.3,2.5256]
[1766093524172,7.5014,2828.6,2827.5,2.5256]
[1766093524399,0.579,2828.5,2827.3,0.405504]
[1766093524602,7.06464146,2831.0,2827.5,30.86988423]
[1766093524774,6.9224,2830.5,2828.0,2.5256]
[1766093524976,6.9224,2830.0,2827.9,0.46438023]
[1766093525195,6.9224,2829.8,2828.2,0.405504]
[1766093525494,6.9224,2829.2,2828.1,0.46438023]
[1766093525658,2.475,2828.9,2828.0,2.5256]
[1766093525855,7.5014,2828.8,2828.0,2.5256]
[1766093526089,0.579,2828.8,2828.1,2.5256]
[1766093526255,6.9224,2828.6,2827.7,2.98998023]
[1766093526454,7.43116003,2828.6,2827.7,7.23058023]
[1766093526766,7.43116003,2828.6,2827.8,2.5256]
[1766093526984,7.43116003,2828.6,2827.4,0.405504]
[1766093526985,9.3974,2828.5,2827.5,2.5256]
[1766093527196,9.3974,2828.5,2826.7,0.579]
[1766093527197,0.579,2828.4,2826.7,3.53759214]
[1766093527506,9.3974,2828.3,2826.8,9.2918]
[1766093527652,9.3974,2828.2,2826.9,2.5256]
[1766093527856,9.3974,2828.2,2827.3,2.5256]
[1766093528089,0.579,2828.1,2827.5,2.5256]
[1766093528266,0.579,2828.0,2827.6,2.5256]
[1766093528461,0.579,2827.9,2827.6,2.5256]
[1766093528667,9.3974,2828.6,2827.6,2.5256]
[1766093528884,1.51874,2828.5,2827.6,2.5256]
[1766093529194,8.44214,2828.5,2827.6,2.5256]
[1766093529382,10.91714,2828.5,2827.6,2.5256]
[1766093529986,1.51974,2828.5,2827.2,2.5256]
[1766093530171,9.3974,2828.3,2827.2,2.5256]
[1766093530796,9.3974,2828.3,2827.3,2.5256]
[1766093530965,9.3974,2828.2,2827.3,2.5256]
[1766093531169,9.3974,2828.0,2826.8,2.5256]
[1766093531406,9.3974,2828.0,2826.9,2.5256]
[1766093531709,0.99754,2827.9,2826.9,2.5256]
[1766093531860,0.001,2828.5,2827.1,3.53716562]
[1766093532058,9.3984,2828.5,2827.4,2.5256]
[1766093532285,6.9224,2828.4,2827.4,2.5256]
[1766093532597,0.578,2828.3,2827.4,2.5256]
[1766093532764,1.57564,2828.3,2827.4,2.5256]
[1766093533085,1.57564,2828.3,2827.4,9.2598]
[1766093533489,0.001,2828.5,2827.6,6.7342]
[1766093533693,0.578,2828.2,2827.8,2.511]
[1766093534061,0.578,2828.2,2827.4,2.511]
[1766093534687,0.578,2828.2,2827.4,9.2452]
[1766093535158,9.7891,2828.4,2827.4,9.2452]
[1766093535361,18.68687105,2827.9,2826.8,2.511]
[1766093535561,0.578,2827.8,2826.8,2.511]
[1766093536001,9.7891,2827.6,2826.7,6.7342]
[1766093538709,9.7891,2827.6,2826.7,9.2452]
[1766093539007,10.82581,2827.6,2826.7,9.2452]
[1766093540481,9.7891,2827.5,2826.7,2.511]
[1766093540684,0.577,2827.4,2826.7,2.511]
[1766093542473,0.577,2827.4,2826.9,2.511]
[1766093543268,0.577,2827.4,2826.7,6.7342]
[1766093543503,4.11382364,2827.4,2826.6,0.002]
[1766093543819,1.30115947,2827.3,2825.9,9.2452]
[1766093544118,9.7891,2826.7,2825.6,9.2452]
[1766093544406,9.7891,2826.5,2825.6,9.2452]
[1766093544817,0.577,2826.6,2825.9,6.7342]
[1766093544973,0.577,2826.6,2826.0,2.511]
[1766093545169,0.577,2826.6,2826.2,6.7342]
[1766093545771,0.577,2826.7,2826.2,6.7342]
[1766093546209,0.577,2826.7,2825.6,4.11607134]
[1766093546415,0.577,2826.7,2825.7,6.7342]
[1766093547101,0.577,2826.7,2825.8,2.511]
[1766093547311,0.577,2826.7,2825.9,9.2452]
[1766093547984,0.05,2829.1,2826.1,9.2452]
[1766093548184,3.1584,2829.2,2827.6,0.405504]
[1766093548393,2.5804,2829.2,2828.9,10.287]
[1766093548592,0.001,2829.7,2829.5,7.7066]
[1766093548807,0.578,2829.6,2829.5,7.7066]
[1766093548980,8.89777105,2830.2,2829.7,7.1276]
[1766093549176,0.46438023,2830.5,2828.1,0.86988423]
[1766093549177,1.04238023,2830.1,2828.4,9.2452]
[1766093549407,8.89777105,2829.8,2828.6,3.53530955]
[1766093549615,8.89777105,2829.1,2827.6,6.04751377]
[1766093549918,1.04238023,2829.0,2827.7,6.7342]
[1766093550074,7.2087,2828.9,2827.7,6.7342]
[1766093550278,7.2087,2828.9,2827.6,2.511]
[1766093550529,7.2087,2828.7,2827.4,6.7342]
[1766093550729,7.2087,2828.3,2827.4,6.7342]
[1766093550947,1.5681,2828.2,2827.4,6.7342]
[1766093551308,1.5681,2828.2,2827.4,10.27101193]
[1766093551607,1.5681,2828.2,2827.4,6.7342]
[1766093553401,1.5681,2828.2,2827.4,10.27101516]
[1766093553639,0.578,2828.2,2827.5,9.2452]
[1766093553938,0.578,2828.2,2827.6,6.7342]
[1766093555277,0.578,2828.2,2827.6,9.2452]
[1766093555570,0.578,2828.2,2827.6,6.7342]
[1766093555770,0.578,2828.2,2827.3,9.70958023]
[1766093555952,0.578,2828.1,2827.4,9.2452]
[1766093556149,7.2087,2830.4,2827.6,7.07313622]
[1766093556352,1.5633,2829.3,2827.9,2.97538023]
[1766093556565,1.5633,2829.0,2828.0,6.7342]
[1766093557069,1.5633,2829.0,2828.0,2.511]
[1766093557270,1.5633,2829.0,2828.2,6.7342]
[1766093557474,12.43162238,2829.8,2828.3,9.2452]
[1766093557475,0.577,2828.9,2828.3,9.2452]
[1766093557681,0.577,2828.8,2828.3,9.2452]
[1766093557883,0.577,2828.7,2828.3,9.2452]
[1766093558377,0.577,2828.7,2828.0,3.53601085]
[1766093558378,0.577,2828.6,2828.1,2.511]
[1766093558597,0.577,2828.6,2828.2,6.7342]
[1766093559784,0.577,2828.6,2828.2,9.2452]
[1766093560783,0.578,2828.7,2828.2,9.2452]
[1766093561179,0.578,2828.7,2828.0,3.53604994]
[1766093561492,0.578,2828.7,2828.1,9.2452]
[1766093564982,0.578,2828.7,2828.2,6.7891]
[1766093567291,0.578,2828.7,2828.2,9.3116]
[1766093570064,0.001,2828.7,2828.2,9.3116]
[1766093570260,0.576,2828.6,2828.2,9.3116]
[1766093570665,2.4697,2829.1,2828.1,6.7891]
[1766093570898,0.575,2829.0,2828.4,9.3116]
[1766093571373,0.575,2828.9,2828.4,9.3116]
[1766093571556,0.575,2828.9,2827.6,4.5992154]
[1766093571557,6.8571,2828.3,2827.5,0.002]
[1766093571761,2.4697,2828.1,2827.4,6.7891]
[1766093572376,9.3268,2828.1,2827.4,6.7891]
[1766093573901,2.4697,2827.8,2826.9,2.5225]
[1766093574065,3.0447,2827.7,2826.9,2.5225]
[1766093574480,3.0447,2827.7,2826.9,9.3116]
[1766093574773,2.4697,2827.4,2826.6,6.7891]
[1766093575097,0.575,2827.3,2826.6,6.7891]
[1766093576497,3.0447,2827.3,2826.6,6.7891]
[1766093577099,3.0447,2827.3,2826.5,2.5225]
[1766093577305,3.0447,2827.3,2826.5,9.3116]
[1766093578496,0.575,2827.3,2826.5,9.3116]
[1766093578702,0.001,2828.7,2827.4,0.08931283]
[1766093578914,0.001,2828.7,2827.2,0.08931283]
[1766093578915,0.001,2828.7,2828.0,6.7891]
[1766093579211,0.001,2828.7,2827.3,0.980504]
[1766093579212,2.4697,2828.6,2827.6,2.5225]
[1766093579378,2.4697,2828.6,2827.8,6.7891]
[1766093579768,0.001,2828.7,2828.0,6.7891]
[1766093579985,0.577,2828.6,2828.2,6.7891]
[1766093580605,0.577,2828.6,2827.0,0.91963674]
[1766093580606,9.3268,2828.4,2827.0,0.91963674]
[1766093580806,2.4697,2828.4,2827.6,9.3116]
[1766093581009,2.4697,2828.4,2827.4,6.7891]
[1766093581010,2.4697,2828.2,2827.4,6.7891]
[1766093581303,0.577,2828.1,2827.5,6.7891]
[1766093581499,11.36747105,2828.5,2827.6,6.7177]
[1766093581707,0.577,2828.4,2827.6,6.7177]
[1766093582105,9.4439,2828.2,2827.2,9.0951]
[1766093582403,9.4439,2828.2,2827.3,6.7177]
[1766093583378,9.4439,2828.2,2827.3,9.0951]
[1766093583579,9.4439,2828.2,2827.3,2.3774]
[1766093583907,9.4439,2828.2,2827.3,9.0951]
[1766093584606,2.5496,2828.1,2827.3,9.0951]
[1766093584781,0.577,2828.0,2827.3,9.0951]
[1766093585389,3.1266,2828.0,2827.3,9.0971]
[1766093585682,0.577,2828.0,2827.3,9.0971]
[1766093585989,0.576,2827.9,2827.4,2.3774]
[1766093586193,0.576,2827.9,2827.5,6.7177]
[1766093586697,3.1256,2827.9,2827.3,0.002]
[1766093587087,0.576,2827.9,2827.3,0.002]
[1766093587294,0.576,2827.9,2827.3,6.7197]
[1766093587602,0.577,2827.8,2827.3,9.0971]
[1766093587785,2.5496,2828.2,2827.3,9.0971]
[1766093587986,0.576,2828.1,2827.3,9.0971]
[1766093588218,3.1256,2828.1,2827.3,9.0971]
[1766093588439,7.4703,2828.1,2827.3,9.0971]
[1766093588594,2.5496,2828.0,2827.3,9.0971]
[1766093589521,2.5496,2828.0,2827.3,6.7197]
[1766093589719,2.5496,2827.9,2827.3,0.002]
[1766093589920,6.8943,2827.9,2827.3,0.002]
[1766093590128,2.5496,2827.8,2827.3,0.002]
[1766093590428,0.576,2827.7,2827.3,0.002]
[1766093591626,3.53535585,2828.6,2827.3,0.002]
[1766093591826,2.5496,2828.2,2827.3,0.002]
[1766093592029,2.5496,2828.3,2827.3,0.002]
[1766093592326,0.92963559,2828.5,2826.7,2.3774]
[1766093592327,6.8943,2827.8,2826.7,2.3774]
[1766093592637,7.9678,2827.7,2826.8,6.7177]
[1766093592835,2.9436,2827.6,2826.8,6.7177]
[1766093593005,2.9436,2827.6,2826.8,9.2415]
[1766093593333,2.3676,2827.5,2826.8,9.2415]
[1766093594001,2.3676,2827.5,2827.3,0.002]
[1766093594202,3.53608,2828.0,2827.3,0.002]
[1766093594433,2.3676,2827.7,2827.3,0.002]
[1766093594831,9.7594,2827.6,2826.8,9.2415]
[1766093595027,0.576,2827.5,2826.8,9.2415]
[1766093595927,0.353608,2827.9,2827.2,2.5238]
[1766093596138,0.576,2827.8,2827.3,2.5238]
[1766093596302,0.576,2827.8,2827.3,9.6527]
[1766093597050,2.83298023,2828.4,2826.8,0.405504]
[1766093597198,0.576,2828.3,2827.5,7.1289]
[1766093597398,7.3918,2828.2,2827.0,7.59328023]
[1766093597606,2.3676,2828.0,2827.1,9.6527]
[1766093597832,2.3676,2827.7,2826.8,7.1289]
[1766093598029,0.576,2827.6,2826.8,2.5238]
[1766093598210,2.9436,2827.6,2826.8,9.6527]
[1766093598404,0.001,2828.4,2826.9,2.5238]
[1766093598617,2.3676,2828.1,2827.2,9.6527]
[1766093598837,2.3676,2828.1,2827.0,7.07457728]
[1766093599130,2.3676,2828.1,2827.3,9.6527]
[1766093599635,0.576,2828.0,2827.3,9.6527]
[1766093600622,0.576,2828.0,2826.9,9.6527]
[1766093600623,2.3676,2827.8,2826.9,9.6527]
[1766093601029,2.3676,2827.8,2827.0,7.1289]
[1766093601231,2.3676,2827.8,2827.0,9.6527]
[1766093602342,2.3676,2827.6,2826.7,9.6527]
[1766093602547,0.576,2827.5,2826.8,7.1289]
[1766093602729,10.3354,2827.5,2826.8,7.1289]
[1766093603222,10.3354,2827.5,2827.3,0.002]
[1766093603423,10.3354,2827.5,2826.8,7.1289]
[1766093603424,2.3676,2827.3,2826.5,2.5238]
[1766093604539,0.001,2829.4,2827.7,7.1289]
[1766093604753,0.001,2829.4,2828.0,2.5238]
[1766093605039,7.3918,2829.3,2828.5,7.1289]
[1766093605247,2.3676,2829.2,2828.5,7.1289]
[1766093605412,0.577,2829.1,2828.5,7.1289]
[1766093605604,0.577,2829.0,2828.5,7.1289]
[1766093606235,0.577,2828.9,2828.8,7.1289]
[1766093607110,0.001,2829.4,2828.8,7.1289]
[1766093607460,7.3918,2830.4,2829.1,2.5238]
[1766093607744,7.3918,2830.2,2828.9,2.5238]
[1766093607917,9.7594,2830.1,2829.1,7.1289]
[1766093608108,1.04138023,2830.3,2829.1,7.1289]
[1766093608313,1.04138023,2830.3,2828.6,7.1289]
[1766093608627,2.3676,2829.9,2828.8,2.5238]
[1766093608833,2.9446,2829.8,2828.8,9.6527]
[1766093609013,2.9446,2829.8,2828.9,7.1289]
[1766093609208,2.9446,2829.8,2828.2,0.405504]
[1766093609209,2.3676,2829.3,2828.2,9.6527]
[1766093609413,3.53374596,2829.9,2828.2,9.6527]
[1766093609414,10.3354,2829.2,2828.2,9.6527]
[1766093609648,0.576,2829.1,2828.2,9.6527]
[1766093610017,0.576,2829.1,2827.5,0.08931283]
[1766093610211,7.3918,2829.9,2828.8,9.6527]
[1766093610433,3.5332978,2830.3,2828.5,13.76510832]
[1766093610434,2.3676,2829.5,2828.5,13.76510832]
[1766093610639,0.46438023,2830.0,2828.3,3.53568337]
[1766093610640,7.85618023,2830.0,2828.8,2.5238]
[1766093610843,2.9446,2829.9,2828.9,7.1289]
[1766093611046,2.9446,2829.9,2828.9,9.6527]
[1766093611211,2.9446,2829.9,2828.8,9.6527]
[1766093611212,2.3676,2829.9,2828.8,9.6527]
[1766093611416,2.3676,2829.9,2829.0,7.1289]
[1766093611612,7.3918,2830.0,2828.9,1.31878758]
[1766093611613,0.001,2830.1,2829.2,2.5238]
[1766093611818,0.001,2830.1,2829.4,9.6527]
[1766093612944,0.001,2830.1,2829.4,2.5238]
[1766093613128,0.001,2830.1,2829.5,7.1289]
[1766093613325,0.001,2830.1,2829.5,8.44760616]
[1766093613946,9.7594,2831.1,2829.6,0.577]
[1766093614156,0.577,2831.0,2830.1,9.6527]
[1766093614323,0.577,2831.0,2830.2,7.1289]
[1766093614518,0.577,2831.0,2830.2,9.6527]
[1766093614751,2.3676,2831.6,2829.7,7.47339104]
[1766093614953,1.79417237,2832.6,2830.3,0.405504]
[1766093614954,2.3676,2832.0,2830.3,0.405504]
[1766093615249,0.577,2831.7,2830.9,7.1289]
[1766093615449,2.3676,2831.8,2830.9,7.1289]
[1766093615750,1.78311208,2833.1,2830.9,7.1289]
[1766093615751,2.3676,2833.0,2830.9,0.577]
[1766093615950,9.7594,2832.8,2831.3,9.6527]
[1766093616154,7.3918,2833.2,2831.4,2.5238]
[1766093616461,3.52824615,2834.3,2831.7,2.5238]
[1766093616630,7.3918,2834.1,2832.3,7.06139886]
[1766093616820,2.3676,2834.4,2832.5,30.0]
[1766093617020,2.3676,2834.4,2832.4,0.578]
[1766093617021,2.3676,2834.4,2833.2,7.1289]
[1766093617268,2.3676,2834.4,2833.3,7.1289]
[1766093617568,2.3676,2834.0,2833.0,7.7069]
[1766093617857,7.9698,2834.4,2833.2,9.6527]
[1766093618015,7.9698,2834.4,2833.0,0.578]
[1766093618016,2.3676,2834.1,2833.0,0.578]
[1766093618222,0.42819589,2833.9,2832.5,7.1289]
[1766093618421,2.3676,2833.8,2832.9,7.1289]
[1766093618677,2.3676,2833.8,2832.8,2.5238]
[1766093618678,0.46438023,2833.8,2833.0,2.5238]
[1766093618848,0.46438023,2833.8,2832.8,0.579]
[1766093618849,0.579,2834.1,2832.9,7.1289]
[1766093619164,7.3918,2835.2,2833.0,7.1289]
[1766093619475,0.001,2833.5,2833.0,7.84179]
[1766093619625,7.9708,2834.1,2833.1,7.1289]
[1766093619957,7.3918,2833.7,2832.6,2.5238]
[1766093620255,7.3918,2834.5,2832.9,9.6527]
[1766093620430,7.3918,2834.3,2833.3,7.1289]
[1766093620629,9.7594,2834.2,2833.0,5.42905341]
[1766093620854,2.9486,2834.2,2833.2,2.5238]
[1766093621057,2.9486,2834.2,2833.3,7.1289]
[1766093621228,2.3676,2834.3,2833.1,9.6527]
[1766093621557,7.3918,2833.4,2832.1,2.5238]
[1766093621856,2.3676,2833.0,2831.9,7.7099]
[1766093622058,2.3676,2833.0,2832.0,7.1289]
[1766093622258,2.3676,2833.0,2830.5,3.53282536]
[1766093622259,7.3918,2832.8,2831.6,9.6527]
[1766093622448,1.79233958,2834.3,2831.7,7.1289]
[1766093622649,7.30538023,2833.4,2831.9,7.088]
[1766093622849,9.30820479,2833.7,2831.6,0.581]
[1766093622850,6.841,2833.0,2831.6,0.581]
[1766093623150,2.5112,2832.4,2831.4,9.6455]
[1766093623350,9.3522,2832.4,2831.4,9.6455]
[1766093623560,2.5112,2832.3,2831.3,0.581]